Workbook

Sheet Sheet1
I4: TITLE OF INFORMATION COLLECTION DOCUMENT | N4: OMB NO.
I6: Importation, Interstate Movement, and Environmental Release of Certain Genetically Engineered Organisms | N6: 0579-XXXX
N9: DATE PREPARED
A13: IDENTIFICATION OF REPORTING OR RECORDKEEPING REQUIREMENT | H13: ANNUAL BURDEN
H15: REPORTS | M15: RECORDS
O17: TOTAL
G18: FORMS NO (S) | H18: NO. OF | I18: NO OF | J18: TOTAL ANNUAL | K18: HOURS | L18: TOTAL | M18: NO. OF | N18: ANNUAL | O18: RECORD-
A19: SECTION OF | B19: DESCRIPTION | G19: (If "none" | H19: RESPONDENTS | I19: RESPONSES | J19: RESPONSES | K19: PER | L19: HOURS | M19: RECORD- | N19: HOURS PER | O19: KEEPING HOURS
A20: REGS. | G20: so state) | I20: PER | J20: (Col. D x E) | K20: RESPONSE | L20: (Col. F x G) | M20: KEEPERS | N20: RECORD- | O20: (Col. I x J)
I21: RESPONDENT | N21: KEEPER
A22: (A) | B22: (B) | G22: (C) | H22: (D) | I22: (E) | J22: (F) | K22: (G) | L22: (H) | M22: (I) | N22: (J) | O22: (K)
A23: 340.3 | B23: PROCEDURE FOR PERMITS (new community of permittees only) (Private Sector) | G23: APHIS FORM 2000 or equivalent | H23: 50.00 | I23: 1.00 | J23: =SUM(H23*I23) -> 50.00 | K23: 10.00 | L23: 500.00 | O23: =SUM(M23*N23) -> 0.00
A24: 340.4 | B24: REGULATORY STATUS EVALUATION (Private Sector) | G24: NONE* *business submitter created docs | H24: 300 | I24: 1.00 | J24: 300.00 | K24: 10.00 | L24: =SUM(J24*K24) -> 3000.00 | O24: 0.00
A25: 340.4 | B25: RECONSIDER REGULATORY STATUS EVALUATION (Private Sector) | G25: NA | H25: 10.00 | I25: 2.00 | J25: 20.00 | K25: 10.00 | L25: =SUM(J25*K25) -> 200.00 | O25: 0.00
A26: 340.3 | B26: STATE & TRIBAL REVIEW (State, Local, and Tribal Government) | G26: CBI-deleted version of APHIS form 2000 or equivalent | H26: 1.00 | I26: 1.00 | J26: =SUM(H26*I26) -> 1.00 | K26: 1.00 | L26: 1.00 | O26: 0.00
A27: 340.3 | B27: RECORD RETENTION (Private Sector) | G27: NONE* *business submitter created docs | M27: 4500.00 | N27: 0.10 | O27: 450.00
B28: SUBTOTAL | J28: =SUM(J23:J27) -> 371.00 | L28: =SUM(L23:L27) -> 3701.00 | M28: =SUM(M23:M27) -> 4500.00 | O28: =SUM(O23:O27) -> 450.00
B29: TOTAL OF ALL PAGES | J29: 535.00 | L29: =SUM(L28+L57+L86+L115+L144+L173+L202+L231+L260+L289+L318+L347+L376+L405+L434+L463+L492+L521+L550+L579+L608+L637+L666+L695+L724+L753+L782+L811+L840+L869+L898+L927+L956+L985+L1014+L1043+L1072+L1101+L1130+L1159+L1188+L1217+L1246+L1275+L1304+L1333+L1362+L1391+L1420+L1449+L1478+L1507+L1536+L1565+L1594+L1623+L1652+L1681+L1710+L1739) -> 3724.00 | M29: =SUM(M28+M57+M86+M115+M144+M173+M202+M231+M260+M289+M318+M347+M376+M405+M434+M463+M492+M521+M550+M579+M608+M637+M666+M695+M724+M753+M782+M811+M840+M869+M898+M927+M956+M985+M1014+M1043+M1072+M1101+M1130+M1159+M1188+M1217+M1246+M1275+M1304+M1333+M1362+M1391+M1420+M1449+M1478+M1507+M1536+M1565+M1594+M1623+M1652+M1681+M1710+M1739) -> 4500.00 | O29: =SUM(O28+O57+O86+O115+O144+O173+O202+O231+O260+O289+O318+O347+O376+O405+O434+O463+O492+O521+O550+O579+O608+O637+O666+O695+O724+O753+O782+O811+O840+O869+O898+O927+O956+O985+O1014+O1043+O1072+O1101+O1130+O1159+O1188+O1217+O1246+O1275+O1304+O1333+O1362+O1391+O1420+O1449+O1478+O1507+O1536+O1565+O1594+O1623+O1652+O1681+O1710+O1739) -> 450.00
A30: TOTAL - COLUMNS "F" AND "I" = OMB 831, 13 b; COLUMNS "H" AND "K" = OMB 831, 13c | J30: 5035.00 | L30: =SUM(L29+O29) -> 4174.00
A34: INSTRUCTIONS: Use this form when a single information collection document involves multiple reporting and recordkeeping requirements. The totals of the figures in cols. should be entered in item 13 of OMB-83-1: cols. (D) &/or (I) = 13a (respondent is only counted once); cols. F & I = 13b; cols. H & K = 13c. (F)Total/(D)Total = (E)Average (H)Total/(F)Total = (G)Average (K)Total/(I)Total = (J)Average NOTE: The columns will calculate automatically. If Col. E's response is something other than annually, i.e., 1/6 years, list as "1/6" & decimal will display. | I34: TITLE OF INFORMATION COLLECTION DOCUMENT | N34: OMB NO.
I36: Importation, Interstate Movement, and Environmental Release of Certain Genetically Engineered Organisms | N36: 0579-XXXX
N39: DATE PREPARED
A43: IDENTIFICATION OF REPORTING OR RECORDKEEPING REQUIREMENT | H43: ANNUAL BURDEN
H45: REPORTS | M45: RECORDS
O47: TOTAL
G48: FORMS NO (S) | H48: NO. OF | I48: NO OF | J48: TOTAL ANNUAL | K48: HOURS | L48: TOTAL | M48: NO. OF | N48: ANNUAL | O48: RECORD-
A49: SECTION OF | B49: DESCRIPTION | G49: (If "none" | H49: RESPONDENTS | I49: RESPONSES | J49: RESPONSES | K49: PER | L49: HOURS | M49: RECORD- | N49: HOURS PER | O49: KEEPING HOURS
A50: REGS. | G50: so state) | I50: PER | J50: (Col. D x E) | K50: RESPONSE | L50: (Col. F x G) | M50: KEEPERS | N50: RECORD- | O50: (Col. I x J)
I51: RESPONDENT | N51: KEEPER
A52: (A) | B52: (B) | G52: (C) | H52: (D) | I52: (E) | J52: (F) | K52: (G) | L52: (H) | M52: (I) | N52: (J) | O52: (K)
A53: 340.3 | B53: MARKING/LABELING (Private Sector) | G53: APHIS 2050, 2051, 2052, 2053, 2054 - or equivalent | H53: 30.00 | I53: 5.00 | J53: =SUM(H53*I53) -> 150.00 | K53: 0.10 | L53: =SUM(J53*K53) -> 15.00 | O53: =SUM(M53*N53) -> 0.00
A54: 340.3 | B54: REPORTS ON CHARACTERISTICS (Private Sector) | G54: NA | H54: 12.00 | I54: 1.00 | J54: =SUM(H54*I54) -> 12.00 | K54: 0.50 | L54: 6.00 | O54: 0.00
A55: 340.3 | B55: NOTIFICATION OF CERTAIN OCCURENCES (Private Sector) | G55: NA | H55: 1.00 | I55: 1.00 | J55: 1.00 | K55: 0.25 | L55: 1.00 | O55: 0.00
A56: 340.3 | B56: APPEAL OF WTHDRAWAL OF PERMIT (Private Sector) | G56: NA | H56: 1.00 | I56: 1.00 | J56: 1.00 | K56: 0.50 | L56: 1.00 | O56: 0.00
B57: SUBTOTAL | J57: =SUM(J53:J56) -> 164.00 | L57: =SUM(L53:L56) -> 23.00 | M57: =SUM(M53:M56) -> 0.00 | O57: =SUM(O53:O56) -> 0.00
A61: INSTRUCTIONS: Use this form when a single information collection document involves multiple reporting and recordkeeping requirements. The totals of the figures in cols. should be entered in item 13 of OMB-83-1: cols. (D) &/or (I) = 13a (respondent is only counted once); cols. F & I = 13b; cols. H & K = 13c. (F)Total/(D)Total = (E)Average (H)Total/(F)Total = (G)Average (K)Total/(I)Total = (J)Average NOTE: The columns will calculate automatically. If Col. E's response is something other than annually, i.e., 1/6 years, list as "1/6" & decimal will display. | I61: TITLE OF INFORMATION COLLECTION DOCUMENT | N61: OMB NO.
N63: 0579-XXXX
N66: DATE PREPARED
A70: IDENTIFICATION OF REPORTING OR RECORDKEEPING REQUIREMENT | H70: ANNUAL BURDEN
H72: REPORTS | M72: RECORDS
O74: TOTAL
G75: FORMS NO (S) | H75: NO. OF | I75: NO OF | J75: TOTAL ANNUAL | K75: HOURS | L75: TOTAL | M75: NO. OF | N75: ANNUAL | O75: RECORD-
A76: SECTION OF | B76: DESCRIPTION | G76: (If "none" | H76: RESPONDENTS | I76: RESPONSES | J76: RESPONSES | K76: PER | L76: HOURS | M76: RECORD- | N76: HOURS PER | O76: KEEPING HOURS
A77: REGS. | G77: so state) | I77: PER | J77: (Col. D x E) | K77: RESPONSE | L77: (Col. F x G) | M77: KEEPERS | N77: RECORD- | O77: (Col. I x J)
I78: RESPONDENT | N78: KEEPER
A79: (A) | B79: (B) | G79: (C) | H79: (D) | I79: (E) | J79: (F) | K79: (G) | L79: (H) | M79: (I) | N79: (J) | O79: (K)
J80: 1.00 | L80: =SUM(J80*K80) -> 0.00 | O80: =SUM(M80*N80) -> 0.00
J81: =SUM(H81*I81) -> 0.00 | L81: 0.00 | O81: 0.00
J82: 0.00 | L82: 0.00 | O82: 0.00
J83: 0.00 | L83: 0.00 | O83: 0.00
J84: 0.00 | L84: 0.00 | O84: 0.00
J85: 0.00 | L85: 0.00 | O85: 0.00
B86: SUBTOTAL | J86: =SUM(J80:J85) -> 1.00 | L86: =SUM(L80:L85) -> 0.00 | M86: =SUM(M80:M85) -> 0.00 | O86: =SUM(O80:O85) -> 0.00
A90: INSTRUCTIONS: Use this form when a single information collection document involves multiple reporting and recordkeeping requirements. The totals of the figures in cols. should be entered in item 13 of OMB-83-1: cols. (D) &/or (I) = 13a (respondent is only counted once); cols. F & I = 13b; cols. H & K = 13c. (F)Total/(D)Total = (E)Average (H)Total/(F)Total = (G)Average (K)Total/(I)Total = (J)Average NOTE: The columns will calculate automatically. If Col. E's response is something other than annually, i.e., 1/6 years, list as "1/6" & decimal will display. | I90: TITLE OF INFORMATION COLLECTION DOCUMENT | N90: OMB NO.
N92: 0579-
N95: DATE PREPARED
A99: IDENTIFICATION OF REPORTING OR RECORDKEEPING REQUIREMENT | H99: ANNUAL BURDEN
H101: REPORTS | M101: RECORDS
O103: TOTAL
G104: FORMS NO (S) | H104: NO. OF | I104: NO OF | J104: TOTAL ANNUAL | K104: HOURS | L104: TOTAL | M104: NO. OF | N104: ANNUAL | O104: RECORD-
A105: SECTION OF | B105: DESCRIPTION | G105: (If "none" | H105: RESPONDENTS | I105: RESPONSES | J105: RESPONSES | K105: PER | L105: HOURS | M105: RECORD- | N105: HOURS PER | O105: KEEPING HOURS
A106: REGS. | G106: so state) | I106: PER | J106: (Col. D x E) | K106: RESPONSE | L106: (Col. F x G) | M106: KEEPERS | N106: RECORD- | O106: (Col. I x J)
I107: RESPONDENT | N107: KEEPER
A108: (A) | B108: (B) | G108: (C) | H108: (D) | I108: (E) | J108: (F) | K108: (G) | L108: (H) | M108: (I) | N108: (J) | O108: (K)
J109: =SUM(H109*I109) -> 0.00 | L109: =SUM(J109*K109) -> 0.00 | O109: =SUM(M109*N109) -> 0.00
J110: 0.00 | L110: 0.00 | O110: 0.00
J111: 0.00 | L111: 0.00 | O111: 0.00
J112: 0.00 | L112: 0.00 | O112: 0.00
J113: 0.00 | L113: 0.00 | O113: 0.00
J114: 0.00 | L114: 0.00 | O114: 0.00
B115: SUBTOTAL | J115: =SUM(J109:J114) -> 0.00 | L115: =SUM(L109:L114) -> 0.00 | M115: =SUM(M109:M114) -> 0.00 | O115: =SUM(O109:O114) -> 0.00
A119: INSTRUCTIONS: Use this form when a single information collection document involves multiple reporting and recordkeeping requirements. The totals of the figures in cols. should be entered in item 13 of OMB-83-1: cols. (D) &/or (I) = 13a (respondent is only counted once); cols. F & I = 13b; cols. H & K = 13c. (F)Total/(D)Total = (E)Average (H)Total/(F)Total = (G)Average (K)Total/(I)Total = (J)Average NOTE: The columns will calculate automatically. If Col. E's response is something other than annually, i.e., 1/6 years, list as "1/6" & decimal will display. | I119: TITLE OF INFORMATION COLLECTION DOCUMENT | N119: OMB NO.
N121: 0579-
N124: DATE PREPARED
A128: IDENTIFICATION OF REPORTING OR RECORDKEEPING REQUIREMENT | H128: ANNUAL BURDEN
H130: REPORTS | M130: RECORDS
O132: TOTAL
G133: FORMS NO (S) | H133: NO. OF | I133: NO OF | J133: TOTAL ANNUAL | K133: HOURS | L133: TOTAL | M133: NO. OF | N133: ANNUAL | O133: RECORD-
A134: SECTION OF | B134: DESCRIPTION | G134: (If "none" | H134: RESPONDENTS | I134: RESPONSES | J134: RESPONSES | K134: PER | L134: HOURS | M134: RECORD- | N134: HOURS PER | O134: KEEPING HOURS
A135: REGS. | G135: so state) | I135: PER | J135: (Col. D x E) | K135: RESPONSE | L135: (Col. F x G) | M135: KEEPERS | N135: RECORD- | O135: (Col. I x J)
I136: RESPONDENT | N136: KEEPER
A137: (A) | B137: (B) | G137: (C) | H137: (D) | I137: (E) | J137: (F) | K137: (G) | L137: (H) | M137: (I) | N137: (J) | O137: (K)
J138: =SUM(H138*I138) -> 0.00 | L138: =SUM(J138*K138) -> 0.00 | O138: =SUM(M138*N138) -> 0.00
J139: 0.00 | L139: 0.00 | O139: 0.00
J140: 0.00 | L140: 0.00 | O140: 0.00
J141: 0.00 | L141: 0.00 | O141: 0.00
J142: 0.00 | L142: 0.00 | O142: 0.00
J143: 0.00 | L143: 0.00 | O143: 0.00
B144: SUBTOTAL | J144: =SUM(J138:J143) -> 0.00 | L144: =SUM(L138:L143) -> 0.00 | M144: =SUM(M138:M143) -> 0.00 | O144: =SUM(O138:O143) -> 0.00
A148: INSTRUCTIONS: Use this form when a single information collection document involves multiple reporting and recordkeeping requirements. The totals of the figures in cols. should be entered in item 13 of OMB-83-1: cols. (D) &/or (I) = 13a (respondent is only counted once); cols. F & I = 13b; cols. H & K = 13c. (F)Total/(D)Total = (E)Average (H)Total/(F)Total = (G)Average (K)Total/(I)Total = (J)Average NOTE: The columns will calculate automatically. If Col. E's response is something other than annually, i.e., 1/6 years, list as "1/6" & decimal will display. | I148: TITLE OF INFORMATION COLLECTION DOCUMENT | N148: OMB NO.
N150: 0579-
N153: DATE PREPARED
A157: IDENTIFICATION OF REPORTING OR RECORDKEEPING REQUIREMENT | H157: ANNUAL BURDEN
H159: REPORTS | M159: RECORDS
O161: TOTAL
G162: FORMS NO (S) | H162: NO. OF | I162: NO OF | J162: TOTAL ANNUAL | K162: HOURS | L162: TOTAL | M162: NO. OF | N162: ANNUAL | O162: RECORD-
A163: SECTION OF | B163: DESCRIPTION | G163: (If "none" | H163: RESPONDENTS | I163: RESPONSES | J163: RESPONSES | K163: PER | L163: HOURS | M163: RECORD- | N163: HOURS PER | O163: KEEPING HOURS
A164: REGS. | G164: so state) | I164: PER | J164: (Col. D x E) | K164: RESPONSE | L164: (Col. F x G) | M164: KEEPERS | N164: RECORD- | O164: (Col. I x J)
I165: RESPONDENT | N165: KEEPER
A166: (A) | B166: (B) | G166: (C) | H166: (D) | I166: (E) | J166: (F) | K166: (G) | L166: (H) | M166: (I) | N166: (J) | O166: (K)
J167: =SUM(H167*I167) -> 0.00 | L167: =SUM(J167*K167) -> 0.00 | O167: =SUM(M167*N167) -> 0.00
J168: 0.00 | L168: 0.00 | O168: 0.00
J169: 0.00 | L169: 0.00 | O169: 0.00
J170: 0.00 | L170: 0.00 | O170: 0.00
J171: 0.00 | L171: 0.00 | O171: 0.00
J172: 0.00 | L172: 0.00 | O172: 0.00
B173: SUBTOTAL | J173: =SUM(J167:J172) -> 0.00 | L173: =SUM(L167:L172) -> 0.00 | M173: =SUM(M167:M172) -> 0.00 | O173: =SUM(O167:O172) -> 0.00
A177: INSTRUCTIONS: Use this form when a single information collection document involves multiple reporting and recordkeeping requirements. The totals of the figures in cols. should be entered in item 13 of OMB-83-1: cols. (D) &/or (I) = 13a (respondent is only counted once); cols. F & I = 13b; cols. H & K = 13c. (F)Total/(D)Total = (E)Average (H)Total/(F)Total = (G)Average (K)Total/(I)Total = (J)Average NOTE: The columns will calculate automatically. If Col. E's response is something other than annually, i.e., 1/6 years, list as "1/6" & decimal will display. | I177: TITLE OF INFORMATION COLLECTION DOCUMENT | N177: OMB NO.
N179: 0579-
N182: DATE PREPARED
A186: IDENTIFICATION OF REPORTING OR RECORDKEEPING REQUIREMENT | H186: ANNUAL BURDEN
H188: REPORTS | M188: RECORDS
O190: TOTAL
G191: FORMS NO (S) | H191: NO. OF | I191: NO OF | J191: TOTAL ANNUAL | K191: HOURS | L191: TOTAL | M191: NO. OF | N191: ANNUAL | O191: RECORD-
A192: SECTION OF | B192: DESCRIPTION | G192: (If "none" | H192: RESPONDENTS | I192: RESPONSES | J192: RESPONSES | K192: PER | L192: HOURS | M192: RECORD- | N192: HOURS PER | O192: KEEPING HOURS
A193: REGS. | G193: so state) | I193: PER | J193: (Col. D x E) | K193: RESPONSE | L193: (Col. F x G) | M193: KEEPERS | N193: RECORD- | O193: (Col. I x J)
I194: RESPONDENT | N194: KEEPER
A195: (A) | B195: (B) | G195: (C) | H195: (D) | I195: (E) | J195: (F) | K195: (G) | L195: (H) | M195: (I) | N195: (J) | O195: (K)
J196: =SUM(H196*I196) -> 0.00 | L196: =SUM(J196*K196) -> 0.00 | O196: =SUM(M196*N196) -> 0.00
J197: 0.00 | L197: 0.00 | O197: 0.00
J198: 0.00 | L198: 0.00 | O198: 0.00
J199: 0.00 | L199: 0.00 | O199: 0.00
J200: 0.00 | L200: 0.00 | O200: 0.00
J201: 0.00 | L201: 0.00 | O201: 0.00
B202: SUBTOTAL | J202: =SUM(J196:J201) -> 0.00 | L202: =SUM(L196:L201) -> 0.00 | M202: =SUM(M196:M201) -> 0.00 | O202: =SUM(O196:O201) -> 0.00
A206: INSTRUCTIONS: Use this form when a single information collection document involves multiple reporting and recordkeeping requirements. The totals of the figures in cols. should be entered in item 13 of OMB-83-1: cols. (D) &/or (I) = 13a (respondent is only counted once); cols. F & I = 13b; cols. H & K = 13c. (F)Total/(D)Total = (E)Average (H)Total/(F)Total = (G)Average (K)Total/(I)Total = (J)Average NOTE: The columns will calculate automatically. If Col. E's response is something other than annually, i.e., 1/6 years, list as "1/6" & decimal will display. | I206: TITLE OF INFORMATION COLLECTION DOCUMENT | N206: OMB NO.
N208: 0579-
N211: DATE PREPARED
A215: IDENTIFICATION OF REPORTING OR RECORDKEEPING REQUIREMENT | H215: ANNUAL BURDEN
H217: REPORTS | M217: RECORDS
O219: TOTAL
G220: FORMS NO (S) | H220: NO. OF | I220: NO OF | J220: TOTAL ANNUAL | K220: HOURS | L220: TOTAL | M220: NO. OF | N220: ANNUAL | O220: RECORD-
A221: SECTION OF | B221: DESCRIPTION | G221: (If "none" | H221: RESPONDENTS | I221: RESPONSES | J221: RESPONSES | K221: PER | L221: HOURS | M221: RECORD- | N221: HOURS PER | O221: KEEPING HOURS
A222: REGS. | G222: so state) | I222: PER | J222: (Col. D x E) | K222: RESPONSE | L222: (Col. F x G) | M222: KEEPERS | N222: RECORD- | O222: (Col. I x J)
I223: RESPONDENT | N223: KEEPER
A224: (A) | B224: (B) | G224: (C) | H224: (D) | I224: (E) | J224: (F) | K224: (G) | L224: (H) | M224: (I) | N224: (J) | O224: (K)
J225: =SUM(H225*I225) -> 0.00 | L225: =SUM(J225*K225) -> 0.00 | O225: =SUM(M225*N225) -> 0.00
J226: 0.00 | L226: 0.00 | O226: 0.00
J227: 0.00 | L227: 0.00 | O227: 0.00
J228: 0.00 | L228: 0.00 | O228: 0.00
J229: 0.00 | L229: 0.00 | O229: 0.00
J230: 0.00 | L230: 0.00 | O230: 0.00
B231: SUBTOTAL | J231: =SUM(J225:J230) -> 0.00 | L231: =SUM(L225:L230) -> 0.00 | M231: =SUM(M225:M230) -> 0.00 | O231: =SUM(O225:O230) -> 0.00
A235: INSTRUCTIONS: Use this form when a single information collection document involves multiple reporting and recordkeeping requirements. The totals of the figures in cols. should be entered in item 13 of OMB-83-1: cols. (D) &/or (I) = 13a (respondent is only counted once); cols. F & I = 13b; cols. H & K = 13c. (F)Total/(D)Total = (E)Average (H)Total/(F)Total = (G)Average (K)Total/(I)Total = (J)Average NOTE: The columns will calculate automatically. If Col. E's response is something other than annually, i.e., 1/6 years, list as "1/6" & decimal will display. | I235: TITLE OF INFORMATION COLLECTION DOCUMENT | N235: OMB NO.
N237: 0579-
N240: DATE PREPARED
A244: IDENTIFICATION OF REPORTING OR RECORDKEEPING REQUIREMENT | H244: ANNUAL BURDEN
H246: REPORTS | M246: RECORDS
O248: TOTAL
G249: FORMS NO (S) | H249: NO. OF | I249: NO OF | J249: TOTAL ANNUAL | K249: HOURS | L249: TOTAL | M249: NO. OF | N249: ANNUAL | O249: RECORD-
A250: SECTION OF | B250: DESCRIPTION | G250: (If "none" | H250: RESPONDENTS | I250: RESPONSES | J250: RESPONSES | K250: PER | L250: HOURS | M250: RECORD- | N250: HOURS PER | O250: KEEPING HOURS
A251: REGS. | G251: so state) | I251: PER | J251: (Col. D x E) | K251: RESPONSE | L251: (Col. F x G) | M251: KEEPERS | N251: RECORD- | O251: (Col. I x J)
I252: RESPONDENT | N252: KEEPER
A253: (A) | B253: (B) | G253: (C) | H253: (D) | I253: (E) | J253: (F) | K253: (G) | L253: (H) | M253: (I) | N253: (J) | O253: (K)
J254: =SUM(H254*I254) -> 0.00 | L254: =SUM(J254*K254) -> 0.00 | O254: =SUM(M254*N254) -> 0.00
J255: 0.00 | L255: 0.00 | O255: 0.00
J256: 0.00 | L256: 0.00 | O256: 0.00
J257: 0.00 | L257: 0.00 | O257: 0.00
J258: 0.00 | L258: 0.00 | O258: 0.00
J259: 0.00 | L259: 0.00 | O259: 0.00
B260: SUBTOTAL | J260: =SUM(J254:J259) -> 0.00 | L260: =SUM(L254:L259) -> 0.00 | M260: =SUM(M254:M259) -> 0.00 | O260: =SUM(O254:O259) -> 0.00
A264: INSTRUCTIONS: Use this form when a single information collection document involves multiple reporting and recordkeeping requirements. The totals of the figures in cols. should be entered in item 13 of OMB-83-1: cols. (D) &/or (I) = 13a (respondent is only counted once); cols. F & I = 13b; cols. H & K = 13c. (F)Total/(D)Total = (E)Average (H)Total/(F)Total = (G)Average (K)Total/(I)Total = (J)Average NOTE: The columns will calculate automatically. If Col. E's response is something other than annually, i.e., 1/6 years, list as "1/6" & decimal will display. | I264: TITLE OF INFORMATION COLLECTION DOCUMENT | N264: OMB NO.
N266: 0579-
N269: DATE PREPARED
A273: IDENTIFICATION OF REPORTING OR RECORDKEEPING REQUIREMENT | H273: ANNUAL BURDEN
H275: REPORTS | M275: RECORDS
O277: TOTAL
G278: FORMS NO (S) | H278: NO. OF | I278: NO OF | J278: TOTAL ANNUAL | K278: HOURS | L278: TOTAL | M278: NO. OF | N278: ANNUAL | O278: RECORD-
A279: SECTION OF | B279: DESCRIPTION | G279: (If "none" | H279: RESPONDENTS | I279: RESPONSES | J279: RESPONSES | K279: PER | L279: HOURS | M279: RECORD- | N279: HOURS PER | O279: KEEPING HOURS
A280: REGS. | G280: so state) | I280: PER | J280: (Col. D x E) | K280: RESPONSE | L280: (Col. F x G) | M280: KEEPERS | N280: RECORD- | O280: (Col. I x J)
I281: RESPONDENT | N281: KEEPER
A282: (A) | B282: (B) | G282: (C) | H282: (D) | I282: (E) | J282: (F) | K282: (G) | L282: (H) | M282: (I) | N282: (J) | O282: (K)
J283: =SUM(H283*I283) -> 0.00 | L283: =SUM(J283*K283) -> 0.00 | O283: =SUM(M283*N283) -> 0.00
J284: 0.00 | L284: 0.00 | O284: 0.00
J285: 0.00 | L285: 0.00 | O285: 0.00
J286: 0.00 | L286: 0.00 | O286: 0.00
J287: 0.00 | L287: 0.00 | O287: 0.00
J288: 0.00 | L288: 0.00 | O288: 0.00
B289: SUBTOTAL | J289: =SUM(J283:J288) -> 0.00 | L289: =SUM(L283:L288) -> 0.00 | M289: =SUM(M283:M288) -> 0.00 | O289: =SUM(O283:O288) -> 0.00
A293: INSTRUCTIONS: Use this form when a single information collection document involves multiple reporting and recordkeeping requirements. The totals of the figures in cols. should be entered in item 13 of OMB-83-1: cols. (D) &/or (I) = 13a (respondent is only counted once); cols. F & I = 13b; cols. H & K = 13c. (F)Total/(D)Total = (E)Average (H)Total/(F)Total = (G)Average (K)Total/(I)Total = (J)Average NOTE: The columns will calculate automatically. If Col. E's response is something other than annually, i.e., 1/6 years, list as "1/6" & decimal will display. | I293: TITLE OF INFORMATION COLLECTION DOCUMENT | N293: OMB NO.
N295: 0579-
N298: DATE PREPARED
A302: IDENTIFICATION OF REPORTING OR RECORDKEEPING REQUIREMENT | H302: ANNUAL BURDEN
H304: REPORTS | M304: RECORDS
O306: TOTAL
G307: FORMS NO (S) | H307: NO. OF | I307: NO OF | J307: TOTAL ANNUAL | K307: HOURS | L307: TOTAL | M307: NO. OF | N307: ANNUAL | O307: RECORD-
A308: SECTION OF | B308: DESCRIPTION | G308: (If "none" | H308: RESPONDENTS | I308: RESPONSES | J308: RESPONSES | K308: PER | L308: HOURS | M308: RECORD- | N308: HOURS PER | O308: KEEPING HOURS
A309: REGS. | G309: so state) | I309: PER | J309: (Col. D x E) | K309: RESPONSE | L309: (Col. F x G) | M309: KEEPERS | N309: RECORD- | O309: (Col. I x J)
I310: RESPONDENT | N310: KEEPER
A311: (A) | B311: (B) | G311: (C) | H311: (D) | I311: (E) | J311: (F) | K311: (G) | L311: (H) | M311: (I) | N311: (J) | O311: (K)
J312: =SUM(H312*I312) -> 0.00 | L312: =SUM(J312*K312) -> 0.00 | O312: =SUM(M312*N312) -> 0.00
J313: 0.00 | L313: 0.00 | O313: 0.00
J314: 0.00 | L314: 0.00 | O314: 0.00
J315: 0.00 | L315: 0.00 | O315: 0.00
J316: 0.00 | L316: 0.00 | O316: 0.00
J317: 0.00 | L317: 0.00 | O317: 0.00
B318: SUBTOTAL | J318: =SUM(J312:J317) -> 0.00 | L318: =SUM(L312:L317) -> 0.00 | M318: =SUM(M312:M317) -> 0.00 | O318: =SUM(O312:O317) -> 0.00
A322: INSTRUCTIONS: Use this form when a single information collection document involves multiple reporting and recordkeeping requirements. The totals of the figures in cols. should be entered in item 13 of OMB-83-1: cols. (D) &/or (I) = 13a (respondent is only counted once); cols. F & I = 13b; cols. H & K = 13c. (F)Total/(D)Total = (E)Average (H)Total/(F)Total = (G)Average (K)Total/(I)Total = (J)Average NOTE: The columns will calculate automatically. If Col. E's response is something other than annually, i.e., 1/6 years, list as "1/6" & decimal will display. | I322: TITLE OF INFORMATION COLLECTION DOCUMENT | N322: OMB NO.
N324: 0579-
N327: DATE PREPARED
... 879 more rows
